bitfinex-derivatives/quotes_SOLF0:USTF0_20250428
["timestamp","ask_amount","ask_price","bid_price","bid_amount"]
[1745809547635,4.72141593,145.71,145.69,6.8616]
[1745809547828,4.72141593,145.7,145.69,6.8616]
[1745809548438,4.72141593,145.7,145.68,6.8619]
[1745809548641,4.72141593,145.69,145.68,6.8619]
[1745809549336,4.72141593,145.69,145.64,24.98]
[1745809549538,4.80043966,145.7,145.65,4.80043966]
[1745809549739,4.72456125,145.69,145.65,4.80043966]
[1745809549938,4.80043966,145.7,145.65,4.80043966]
[1745809550139,4.72456124,145.69,145.65,4.80043966]
[1745809550340,4.72471188,145.68,145.66,6.863]
[1745809550639,4.80043966,145.7,145.65,4.80043966]
[1745809550840,4.72596192,145.69,145.67,4.80043966]
[1745809551040,4.72581933,145.68,145.65,4.80043966]
[1745809551241,4.80043966,145.7,145.65,4.80043966]
[1745809551438,9.52649044,145.69,145.64,29.78043966]
[1745809551638,9.52649044,145.68,145.64,24.98]
[1745809551835,4.72605078,145.67,145.64,24.98]
[1745809552041,6.8629,145.67,145.64,31.8438]
[1745809552245,4.72736589,145.66,145.64,31.8438]
[1745809552543,6.8629,145.67,145.64,31.8438]
[1745809552739,4.72931542,145.66,145.65,6.8635]
[1745809554545,4.72911153,145.66,145.65,6.8635]
[1745809557842,6.8622,145.68,145.65,6.8635]
[1745809558047,4.72777806,145.67,145.65,6.8635]
[1745809558245,4.72777806,145.66,145.65,6.8635]
[1745809558443,6.8622,145.68,145.65,6.8635]
[1745809558643,4.72957687,145.67,145.65,6.8635]
[1745809558845,4.72957687,145.66,145.65,11.66393966]
[1745809559950,4.72957687,145.66,145.65,6.8635]
[1745809560147,4.72957687,145.66,145.65,11.66393966]
[1745809560748,4.72957687,145.66,145.65,6.8635]
[1745809560948,4.72957687,145.66,145.63,4.80043966]
[1745809561149,4.72957687,145.65,145.63,4.80043966]
[1745809561448,4.72957687,145.64,145.63,11.66463966]
[1745809561647,4.73418346,145.64,145.63,11.66463966]
[1745809562950,29.78043966,145.72,145.63,11.66043966]
[1745809563152,4.73308747,145.71,145.67,4.80043966]
[1745809563351,4.73308747,145.7,145.67,4.80043966]
[1745809563552,4.73284819,145.69,145.68,6.8618]
[1745809565450,29.78043966,145.72,145.69,6.8616]
[1745809565649,4.73270746,145.71,145.69,6.8616]
[1745809565850,4.73270746,145.7,145.69,6.8616]
[1745809567452,4.73267725,145.7,145.69,6.8616]
[1745809568255,4.73267725,145.7,145.68,6.8621]
[1745809568550,4.73267725,145.69,145.68,6.8621]
[1745809570652,101.65999606,145.79,145.7,4.80043966]
[1745809570851,101.65999606,145.79,145.74,4.80043966]
[1745809571454,4.80043966,145.75,145.73,24.98]
[1745809571754,4.80043966,145.75,145.7,29.78043966]
[1745809572054,4.80043966,145.75,145.72,6.8599]
[1745809572552,4.80043966,145.74,145.72,6.8599]
[1745809574257,4.80043966,145.75,145.72,6.8599]
[1745809575756,4.80043966,145.77,145.73,4.80043966]
[1745809576658,4.80043966,145.77,145.74,6.8588]
[1745809577458,4.80043966,145.76,145.71,4.80043966]
[1745809577658,4.80043966,145.75,145.71,4.80043966]
[1745809577860,4.80043966,145.75,145.7,29.78043966]
[1745809579261,11.65933966,145.75,145.72,6.8599]
[1745809580753,4.80043966,145.75,145.7,29.78043966]
[1745809580957,4.80043966,145.77,145.73,4.80043966]
[1745809581153,29.78043966,145.78,145.73,4.80043966]
[1745809581361,4.80043966,145.78,145.73,4.80043966]
[1745809581654,4.80043966,145.78,145.75,6.8584]
[1745809581859,4.80043966,145.78,145.74,4.80043966]
[1745809582158,4.80043966,145.78,145.75,6.8584]
[1745809582460,11.65793966,145.78,145.75,6.8584]
[1745809583353,11.65833966,145.77,145.74,6.8592]
[1745809585258,4.80043966,145.75,145.7,24.98]
[1745809585457,4.80043966,145.74,145.7,24.98]
[1745809585657,11.66003966,145.74,145.7,31.8411]
[1745809587060,4.80043966,145.72,145.67,4.80043966]
[1745809587261,4.80043966,145.7,145.66,523.84043966]
[1745809587761,4.80043966,145.7,145.67,6.8622]
[1745809587960,4.80043966,145.71,145.67,6.8622]
[1745809588156,4.80043966,145.71,145.66,523.84043966]
[1745809588459,4.80043966,145.71,145.68,6.8621]
[1745809588957,11.66113966,145.71,145.68,6.8621]
[1745809589261,6.8607,145.71,145.68,6.8621]
[1745809590261,6.8607,145.71,145.67,11.66283966]
[1745809590463,11.66113966,145.71,145.67,11.66283966]
[1745809592767,11.66073966,145.72,145.68,6.8617]
[1745809594668,11.66073966,145.72,145.69,6.8615]
[1745809594964,4.80043966,145.71,145.69,6.8615]
[1745809595363,8.72673966,145.73,145.69,6.8615]
[1745809595668,13.65033966,145.73,145.7,6.8612]
[1745809596466,13.65033966,145.73,145.69,11.66193966]
[1745809596763,11.65993966,145.74,145.69,4.80043966]
[1745809597070,11.65993966,145.74,145.7,4.80043966]
[1745809597466,11.65993966,145.74,145.7,11.66113966]
[1745809597761,4.80043966,145.76,145.72,4.80043966]
[1745809597965,4.80043966,145.76,145.73,6.8595]
[1745809598564,24.98,145.77,145.74,4.80043966]
[1745809598766,4.80043966,145.79,145.74,4.80043966]
[1745809598969,11.65763966,145.79,145.74,4.80043966]
[1745809599171,24.98,145.8,145.76,4.80043966]
[1745809599372,8.78663966,145.81,145.77,4.80043966]
[1745809599572,10.8423,145.81,145.77,4.80043966]
[1745809599768,8.8868,145.81,145.78,4.80043966]
[1745809600177,2.0307,145.81,145.78,11.65753966]
[1745809600873,2.0307,145.81,145.79,6.8569]
[1745809601573,2.0307,145.81,145.78,11.65763966]
[1745809601772,2.0307,145.81,145.76,4.80043966]
[1745809601971,6.83113966,145.81,145.77,4.80043966]
[1745809602274,6.83113966,145.81,145.78,6.8571]
[1745809603478,13.68723966,145.81,145.78,6.8571]
[1745809603682,13.68723966,145.81,145.77,11.65813966]
[1745809605985,13.68723966,145.81,145.78,6.8574]
[1745809606282,13.68723966,145.81,145.77,4.80043966]
[1745809607286,13.68723966,145.81,145.77,11.65823966]
[1745809610789,4.80043966,145.8,145.76,6.8583]
[1745809610983,2.0307,145.81,145.74,29.78043966]
[1745809610984,4.80043966,145.79,145.74,29.78043966]
[1745809611487,6.8575,145.78,145.75,6.8585]
[1745809611787,11.65793966,145.78,145.74,29.78043966]
[1745809611987,11.65793966,145.78,145.74,24.98]
[1745809612584,11.65793966,145.78,145.74,31.8392]
[1745809613091,4.80043966,145.76,145.72,4.80043966]
[1745809613389,4.80043966,145.76,145.73,6.8594]
[1745809613591,11.65843966,145.77,145.73,6.8594]
[1745809613990,11.65843966,145.77,145.74,6.8591]
[1745809614190,11.65793966,145.78,145.74,6.8591]
[1745809615491,36.61753966,145.79,145.75,6.8586]
[1745809615692,36.61753966,145.79,145.75,4.80043966]
[1745809616294,36.61753966,145.79,145.75,11.65913966]
[1745809616493,36.61753966,145.79,145.75,6.8587]
[1745809616789,6.8574,145.78,145.75,6.8587]
[1745809619497,36.61753966,145.79,145.75,6.8587]
[1745809620197,6.8575,145.78,145.75,6.8587]
[1745809620597,6.8575,145.78,145.74,11.65953966]
[1745809620793,4.80043966,145.76,145.71,518.9]
[1745809620997,4.80043966,145.74,145.71,24.96]
[1745809621202,4.80043966,145.72,145.68,24.96]
[1745809621392,11.66143966,145.71,145.68,24.96]
[1745809621593,4.80043966,145.7,145.68,24.96]
[1745809621898,11.66143966,145.71,145.68,24.96]
[1745809622094,4.80043966,145.71,145.68,31.8218]
[1745809623095,4.80043966,145.72,145.68,29.76043966]
[1745809623299,6.77803966,145.74,145.69,4.80043966]
[1745809623898,1.9776,145.74,145.7,4.80043966]
[1745809624099,29.76043966,145.75,145.7,4.80043966]
[1745809624602,11.66003966,145.74,145.7,11.66133966]
[1745809625701,11.66003966,145.74,145.71,6.8606]
[1745809626299,11.66003966,145.74,145.68,24.96]
[1745809626300,4.80043966,145.73,145.69,4.80043966]
[1745809626500,4.80043966,145.72,145.68,29.76043966]
[1745809626696,4.80043966,145.71,145.68,24.96]
[1745809627803,4.80043966,145.7,145.47,3060.75905484]
[1745809627999,4.80043966,145.7,145.65,29.76043966]
[1745809628904,11.66193966,145.7,145.66,6.8628]
[1745809629097,4.80043966,145.69,145.65,29.76043966]
[1745809629593,6.8623,145.68,145.65,24.96]
[1745809629797,4.80043966,145.68,145.63,4.80043966]
[1745809630002,4.80043966,145.67,145.63,4.80043966]
[1745809630198,4.80043966,145.67,145.62,29.76043966]
[1745809630398,11.66313966,145.67,145.63,6.8644]
[1745809630598,4.80043966,145.67,145.63,4.80043966]
[1745809631000,4.80043966,145.68,145.63,4.80043966]
[1745809631295,6.8626,145.67,145.64,6.864]
[1745809632803,11.66263966,145.68,145.64,6.864]
[1745809633305,36.62193966,145.7,145.65,4.80043966]
[1745809634001,36.62193966,145.7,145.66,6.8629]
[1745809634201,4.80043966,145.69,145.66,6.8629]
[1745809635404,11.66213966,145.69,145.66,6.8629]
[1745809636008,4.80043966,145.69,145.66,6.8629]
[1745809638705,4.80043966,145.69,145.67,6.8625]
[1745809639000,36.62183966,145.7,145.67,6.8625]
[1745809639202,36.62183966,145.7,145.65,4.80043966]
[1745809639405,4.80043966,145.69,145.66,6.8629]
[1745809646219,4.80043966,145.69,145.65,4.80043966]
[1745809646517,4.80043966,145.72,145.68,4.80043966]
[1745809647212,11.66083966,145.72,145.68,4.80043966]
[1745809647515,11.66083966,145.72,145.69,6.8616]
[1745809652219,11.66113966,145.71,145.68,6.8619]
[1745809654929,6.8612,145.7,145.67,11.66283966]
[1745809655327,11.66163966,145.7,145.67,6.8624]
[1745809655526,4.80043966,145.68,145.66,24.96]
[1745809655829,4.80043966,145.68,145.63,29.76043966]
[1745809656230,11.66273966,145.68,145.65,6.8634]
[1745809656729,11.66333966,145.67,145.63,36.62473966]
[1745809657132,4.80043966,145.67,145.63,29.76043966]
[1745809657827,4.80043966,145.67,145.64,6.8636]
[1745809658329,4.80043966,145.67,145.63,29.76043966]
[1745809658631,6.8632,145.66,145.63,36.62463966]
[1745809658827,4.80043966,145.67,145.63,36.62463966]
[1745809659829,11.66313966,145.67,145.63,36.62463966]
[1745809660431,11.66313966,145.67,145.64,6.8639]
[1745809660929,11.66313966,145.67,145.63,11.66473966]
[1745809662332,11.66313966,145.67,145.63,6.8643]
[1745809665136,4.80043966,145.66,145.62,6.8647]
[1745809666236,6.8635,145.65,145.62,6.8647]
[1745809667135,11.66393966,145.65,145.62,6.8647]
[1745809667435,4.80043966,145.65,145.61,4.80043966]
[1745809668133,4.80043966,145.65,145.62,6.8647]
[1745809668838,4.80043966,145.65,145.63,6.8644]
[1745809670042,11.66393966,145.65,145.62,6.8649]
[1745809670336,4.80043966,145.65,145.62,6.8649]
[1745809671836,4.80043966,145.65,145.63,6.8645]
[1745809674338,11.66403966,145.65,145.62,6.8647]
[1745809674538,4.80043966,145.65,145.6,29.76043966]
[1745809675340,4.80043966,145.64,145.6,29.76043966]
[1745809676241,11.66443966,145.64,145.61,6.8652]
[1745809677241,4.80043966,145.64,145.61,6.8652]
[1745809677539,11.66413966,145.65,145.61,6.8652]
[1745809677739,11.66413966,145.65,145.62,6.8649]
[1745809677940,6.865,145.62,145.57,518.86]
[1745809678140,4.80043966,145.62,145.58,4.80043966]
[1745809678541,4.80043966,145.63,145.58,4.80043966]
[1745809679141,4.80043966,145.64,145.6,6.8656]
[1745809679641,4.80043966,145.64,145.61,6.8654]
[1745809680842,4.80043966,145.63,145.59,4.80043966]
[1745809681042,4.80043966,145.63,145.58,4.80043966]
[1745809681344,4.80043966,145.63,145.6,6.8655]
[1745809681545,4.80043966,145.64,145.59,4.80043966]
[1745809682235,4.80043966,145.62,145.57,523.66043966]
[1745809682439,4.80043966,145.61,145.57,29.76043966]
[1745809682738,4.80043966,145.62,145.59,6.866]
[1745809682943,4.80043966,145.62,145.57,29.76043966]
[1745809684544,4.80043966,145.66,145.61,4.80043966]
[1745809685142,6.74333966,145.67,145.62,4.80043966]
[1745809685545,4.80043966,145.66,145.63,6.8644]
[1745809688139,4.80043966,145.66,145.61,29.76043966]
[1745809688447,6.74333966,145.67,145.63,4.80043966]
[1745809688637,4.80043966,145.67,145.63,4.80043966]
[1745809688836,4.80043966,145.69,145.64,4.80043966]
[1745809689944,4.80043966,145.69,145.66,6.8628]
[1745809691246,4.80043966,145.69,145.67,6.8624]
[1745809692248,4.80043966,145.69,145.66,6.8629]
[1745809694051,4.80043966,145.68,145.66,6.8629]
[1745809699754,11.66213966,145.69,145.66,6.8629]
[1745809704253,4.80043966,145.69,145.61,24.96]
[1745809704457,4.80043966,145.64,145.61,24.96]
[1745809706055,4.80043966,145.64,145.62,6.8649]
[1745809706255,4.80043966,145.64,145.61,24.96]
[1745809706446,4.91668569,145.63,145.61,24.96]
[1745809706652,4.91668569,145.62,145.61,24.96]
[1745809706853,11.78188569,145.62,145.58,523.94043966]
[1745809707053,4.91668569,145.61,145.58,29.74043966]
[1745809707253,4.91668569,145.6,145.59,6.8662]
[1745809710158,4.80043966,145.62,145.59,6.8662]
[1745809710958,4.91332268,145.61,145.59,6.8662]
[1745809711155,4.91332268,145.6,145.59,6.8662]
[1745809711356,4.91257304,145.6,145.59,6.8662]
[1745809712261,4.91257304,145.6,145.59,11.66663966]
[1745809713362,4.80043966,145.63,145.6,6.8657]
[1745809713661,4.91147987,145.62,145.6,6.8657]
[1745809713856,4.91147987,145.61,145.6,6.8657]
[1745809715163,4.91075766,145.61,145.6,6.8657]
[1745809715462,4.91053904,145.61,145.6,6.8657]
[1745809718964,4.91053904,145.61,145.6,11.66613966]
[1745809719262,11.66473966,145.64,145.61,6.8653]
[1745809719563,4.9107998,145.63,145.61,6.8653]
[1745809719862,4.9107998,145.62,145.6,6.8657]
[1745809720064,4.9107998,145.61,145.6,6.8657]
[1745809720264,4.9102855,145.61,145.6,6.8657]
[1745809720964,4.91024316,145.61,145.6,6.8657]
[1745809727064,4.91024316,145.61,145.58,29.74043966]
[1745809727274,4.80043966,145.61,145.58,24.94]
[1745809727463,4.90913608,145.6,145.58,24.94]
[1745809727663,4.80043966,145.61,145.58,24.94]
[1745809727870,4.90940191,145.6,145.58,31.8065]
[1745809728167,4.80043966,145.61,145.58,31.8065]
[1745809728369,4.90897767,145.6,145.58,31.8065]
[1745809728570,4.80043966,145.6,145.56,4.80043966]
[1745809728761,4.90857467,145.59,145.55,29.74043966]
[1745809729065,4.80043966,145.6,145.55,29.74043966]
[1745809729264,4.90836233,145.59,145.56,11.66793966]
[1745809729465,4.80043966,145.61,145.57,4.80043966]
[1745809729663,4.90735108,145.6,145.58,4.80043966]
[1745809729968,4.80043966,145.63,145.59,4.80043966]
[1745809730168,4.90778812,145.62,145.59,4.80043966]
[1745809730359,4.90778812,145.61,145.59,4.80043966]
[1745809730561,4.80043966,145.63,145.59,11.66683966]
[1745809730764,4.90715976,145.62,145.59,4.80043966]
[1745809731070,4.90715976,145.61,145.58,4.80043966]
[1745809731368,11.66493966,145.63,145.58,4.80043966]
[1745809731369,4.90715976,145.6,145.58,4.80043966]
[1745809731668,4.80043966,145.62,145.6,6.8656]
[1745809731866,4.90718214,145.61,145.6,6.8656]
[1745809732570,4.90568801,145.61,145.6,6.8656]
[1745809734970,4.90568801,145.61,145.6,11.66603966]
[1745809735172,6.89483966,145.65,145.62,6.8646]
[1745809735370,4.90638426,145.64,145.62,6.8646]
[1745809735671,4.90638426,145.63,145.62,6.8646]
[1745809735974,4.90638426,145.63,145.61,11.66573966]
[1745809736272,6.89483966,145.65,145.61,6.8653]
[1745809736273,4.90638426,145.62,145.61,6.8653]
[1745809740877,4.90638426,145.62,145.61,11.66573966]
[1745809741177,4.80043966,145.66,145.64,6.8638]
[1745809741377,4.90758973,145.65,145.64,6.8638]
[1745809741681,4.90758973,145.65,145.63,6.8643]
[1745809741873,4.90758973,145.64,145.63,6.8643]
[1745809744976,16.57222939,145.64,145.61,6.8654]
[1745809745178,9.70802939,145.63,145.59,24.94]
[1745809745380,4.90758973,145.62,145.59,29.74043966]
[1745809745679,4.80043966,145.64,145.6,4.80043966]
[1745809745881,4.90749114,145.63,145.6,4.80043966]
[1745809746080,4.90749114,145.62,145.6,4.80043966]
[1745809746281,4.90749114,145.61,145.6,11.66633966]
[1745809746881,4.80043966,145.65,145.62,6.8647]
[1745809747080,4.90761489,145.64,145.62,6.8647]
[1745809747278,4.90761489,145.63,145.62,6.8647]
[1745809747480,4.90907631,145.63,145.62,6.8647]
[1745809750785,4.91242358,145.63,145.62,6.8647]
[1745809751177,4.80043966,145.65,145.62,6.8647]
[1745809751377,4.91312732,145.64,145.62,6.8647]
[1745809751581,4.91312732,145.63,145.62,6.8647]
[1745809751988,4.91444159,145.63,145.62,6.8647]
[1745809756998,4.80043966,145.66,145.64,6.8637]
[1745809757194,4.91275922,145.65,145.64,6.8637]
[1745809766702,4.90830919,145.65,145.64,6.8637]
[1745809766898,4.90830919,145.65,145.64,11.66413966]
[1745809768605,8.69093966,145.69,145.66,6.863]
[1745809768800,4.90733514,145.68,145.66,6.863]
[1745809769002,4.90733514,145.67,145.66,6.863]
[1745809770602,4.90592037,145.67,145.66,6.863]
[1745809774412,8.69093966,145.69,145.67,6.8624]
[1745809774609,4.90577847,145.68,145.67,6.8624]
[1745809774909,4.90577847,145.68,145.67,11.66283966]
[1745809775611,4.90577847,145.68,145.67,36.56283966]
[1745809777011,4.80043966,145.73,145.71,6.8604]
[1745809777211,4.90367803,145.72,145.71,6.8604]
[1745809782016,9.70411769,145.72,145.7,6.8611]
[1745809782317,9.70411769,145.71,145.7,6.8611]
[1745809784316,9.70411769,145.71,145.68,6.862]
[1745809784515,4.90367803,145.7,145.68,6.862]
[1745809784716,4.90367803,145.69,145.68,6.862]
[1745809790121,11.66073966,145.72,145.68,6.862]
[1745809790315,9.69176084,145.71,145.68,6.862]
[1745809790517,4.89132118,145.7,145.68,6.862]
[1745809790816,4.89132118,145.69,145.68,6.862]
[1745809791016,4.89132118,145.69,145.67,24.9]
[1745809791217,4.89132118,145.68,145.65,4.80043966]
[1745809791418,11.66193966,145.7,145.66,6.8627]
[1745809791617,4.89266297,145.69,145.66,6.8627]
[1745809791818,4.89266297,145.68,145.66,6.8627]
[1745809792118,4.80043966,145.7,145.67,6.8625]
[1745809792320,4.89257567,145.69,145.67,6.8625]
[1745809792519,4.89257567,145.68,145.67,6.8625]
[1745809792923,4.89257567,145.68,145.67,11.66293966]
[1745809793721,11.66073966,145.72,145.68,6.8618]
[1745809793924,9.69400622,145.71,145.68,6.8618]
[1745809794120,4.89356656,145.7,145.68,6.8618]
[1745809794320,4.89356656,145.69,145.68,6.8618]
[1745809799430,4.80043966,145.71,145.68,6.8618]
[1745809799631,4.89887455,145.7,145.68,6.8618]
[1745809799929,4.89887455,145.69,145.68,6.8618]
[1745809800732,4.80043966,145.71,145.69,6.8615]
[1745809801927,4.9014134,145.7,145.69,6.8615]
[1745809802132,4.90141177,145.7,145.69,6.8615]
[1745809803533,4.80043966,145.71,145.69,6.8615]
[1745809804732,4.80043966,145.71,145.64,24.9]
[1745809804937,4.80043966,145.69,145.64,24.9]
[1745809805234,4.80043966,145.68,145.64,24.9]
[1745809805435,4.80043966,145.68,145.66,6.863]
[1745809805738,4.80043966,145.68,145.64,24.9]
[1745809806033,11.66193966,145.7,145.65,4.80043966]
[1745809806334,4.80043966,145.7,145.65,4.80043966]
[1745809806535,4.80043966,145.7,145.67,6.8625]
[1745809808338,11.66173966,145.7,145.67,6.8625]
[1745809808937,4.90971463,145.69,145.67,6.8625]
[1745809809237,4.90971463,145.68,145.67,6.8625]
[1745809810236,4.911402,145.68,145.67,6.8625]
[1745809812439,4.91501972,145.68,145.67,4.80043966]
[1745809813139,38.0493,145.74,145.7,6.8608]
[1745809813440,4.9158341,145.73,145.7,4.80043966]
[1745809813639,4.9158341,145.72,145.7,4.80043966]
[1745809813836,4.9158341,145.71,145.7,11.66163966]
[1745809814440,4.91744118,145.71,145.7,11.66163966]
[1745809820448,2.0584,145.74,145.71,6.8605]
[1745809820645,4.9205533,145.73,145.71,6.8605]
[1745809820845,4.9205533,145.72,145.71,6.8605]
[1745809822143,4.92045788,145.72,145.71,6.8605]
[1745809826045,4.92102682,145.72,145.71,6.8605]
[1745809828051,4.92037215,145.72,145.71,6.8605]
[1745809831853,4.91965324,145.72,145.71,6.8605]
[1745809834151,4.91965324,145.72,145.71,11.66093966]
[1745809838257,29.68043966,145.77,145.71,4.80043966]
[1745809838561,4.91684375,145.76,145.73,4.80043966]
[1745809838757,4.91684375,145.75,145.73,4.80043966]
[1745809838958,4.91684375,145.74,145.73,11.66023966]
[1745809839467,6.93093966,145.78,145.75,6.8586]
[1745809839761,4.91609096,145.77,145.75,6.8586]
[1745809839952,4.91609096,145.76,145.75,6.8586]
[1745809840760,4.91609096,145.76,145.74,6.8591]
[1745809840963,9.71653062,145.75,145.72,24.86]
[1745809841261,4.91609096,145.74,145.72,24.86]
[1745809841460,4.91424538,145.73,145.72,31.7199]
[1745809843462,4.91424538,145.73,145.71,6.8605]
[1745809843662,4.91424538,145.72,145.71,6.8605]
[1745809843964,9.71468504,145.72,145.69,24.86]
[1745809844164,4.91424538,145.71,145.69,31.7215]
[1745809844364,4.91424538,145.7,145.69,31.7215]
[1745809847867,4.91424538,145.7,145.69,36.52193966]
[1745809849071,2.0118,145.73,145.71,6.8605]
[1745809849270,4.91435491,145.72,145.71,6.8605]
[1745809852872,2.0118,145.73,145.71,6.8605]
[1745809853072,4.91522248,145.72,145.71,6.8605]
[1745809854869,4.91541718,145.72,145.71,6.8605]
[1745809858673,6.81223966,145.73,145.71,6.8605]
[1745809858873,4.91965266,145.72,145.71,6.8605]
[1745809859368,4.91984186,145.72,145.71,6.8605]
[1745809859878,9.72028152,145.72,145.69,24.86]
[1745809860078,9.72028152,145.71,145.66,29.64043966]
[1745809860377,4.91984186,145.7,145.66,29.64043966]
[1745809860573,4.91984186,145.69,145.68,6.8618]
[1745809861879,4.80043966,145.71,145.69,6.8616]
[1745809862075,4.92055617,145.7,145.69,6.8616]
[1745809862279,4.92047373,145.7,145.69,6.8616]
[1745809863179,4.91996926,145.7,145.69,6.8616]
[1745809869783,10.85423966,145.73,145.7,6.8609]
[1745809870083,4.91686496,145.72,145.69,4.80043966]
[1745809870284,4.91686496,145.71,145.69,4.80043966]
[1745809870483,4.91686496,145.7,145.69,11.66203966]
[1745809870880,29.66043966,145.76,145.73,6.8593]
[1745809871077,4.91778336,145.75,145.73,6.8593]
[1745809871278,29.66043966,145.76,145.73,6.8593]
[1745809871486,4.80043966,145.75,145.72,6.8601]
[1745809871685,4.80043966,145.73,145.7,24.86]
[1745809871878,4.80043966,145.73,145.68,4.80043966]
[1745809872286,4.80043966,145.73,145.7,6.8609]
[1745809873687,4.80043966,145.74,145.7,4.80043966]
[1745809873887,4.80043966,145.75,145.7,4.80043966]
[1745809874185,4.80043966,145.75,145.72,6.8599]
[1745809874987,4.80043966,145.75,145.73,6.8597]
[1745809880093,366.19433719,145.82,145.74,29.64043966]
[1745809880391,4.80043966,145.78,145.75,24.84]
[1745809880592,4.80043966,145.77,145.74,6.8588]
[1745809880894,4.80043966,145.77,145.73,29.64043966]
[1745809881294,4.80043966,145.77,145.75,6.8585]
[1745809882899,4.80043966,145.77,145.74,6.8591]
[1745809883101,4.80043966,145.75,145.73,24.84]
[1745809883302,4.80043966,145.75,145.71,4.80043966]
[1745809883797,4.80043966,145.76,145.71,4.80043966]
[1745809884093,4.80043966,145.76,145.72,4.80043966]
[1745809884301,4.80043966,145.76,145.73,6.8597]
[1745809885002,6.8571,145.79,145.75,6.8588]
[1745809885201,4.80043966,145.77,145.75,6.8588]
[1745809886503,4.80043966,145.77,145.7,24.84]
[1745809886702,4.80043966,145.75,145.72,6.8602]
[1745809887503,4.80043966,145.76,145.73,6.8597]
[1745809887904,4.63017144,145.75,145.73,6.8597]
[1745809888107,4.80043966,145.77,145.74,6.8591]
[1745809888406,4.63291107,145.76,145.74,6.8591]
[1745809888700,4.63291107,145.75,145.73,11.66003966]
[1745809889005,4.80043966,145.77,145.73,6.8596]
[1745809889303,4.63456033,145.76,145.73,6.8596]
[1745809889499,4.63456033,145.75,145.73,6.8596]
[1745809889695,11.65863966,145.77,145.73,6.8596]
[1745809889903,4.63409325,145.76,145.73,6.8596]
[1745809890107,4.63409325,145.75,145.73,6.8596]
[1745809890297,4.80043966,145.76,145.73,6.8596]
[1745809890499,4.63378236,145.75,145.73,6.8596]
[1745809890704,4.80043966,145.76,145.73,6.8596]
[1745809890904,4.63414184,145.75,145.73,6.8596]
[1745809891105,4.80043966,145.76,145.73,6.8596]
[1745809891405,4.6339294,145.75,145.73,6.8596]
[1745809891607,4.80043966,145.76,145.73,6.8596]
[1745809891807,4.63396354,145.75,145.73,6.8596]
[1745809892007,4.80043966,145.76,145.73,6.8596]
[1745809892206,4.63275644,145.75,145.73,6.8596]
[1745809892506,4.80043966,145.76,145.73,6.8596]
[1745809892908,4.63254688,145.75,145.73,6.8596]
[1745809893110,4.80043966,145.76,145.73,6.8596]
[1745809893407,4.63208597,145.75,145.72,6.86]
[1745809893605,4.63208597,145.74,145.72,6.86]
[1745809893805,4.80043966,145.74,145.72,6.86]
[1745809894410,4.63170241,145.73,145.72,6.86]
[1745809902510,4.62874394,145.73,145.72,6.86]
[1745809904515,4.80043966,145.74,145.73,6.8598]
[1745809904715,9.42813542,145.74,145.73,6.8598]
[1745809905320,4.62769576,145.74,145.73,6.8598]
[1745809905618,4.80043966,145.76,145.73,6.8598]
[1745809905815,4.80043966,145.76,145.71,4.80043966]
[1745809906015,4.80043966,145.76,145.73,4.80043966]
[1745809906218,4.62826164,145.75,145.72,4.80043966]
[1745809906417,4.62826164,145.74,145.73,6.8598]
[1745809907217,4.62826164,145.74,145.73,11.66023966]
[1745809907716,4.80043966,145.78,145.73,4.80043966]
[1745809907918,4.62917886,145.77,145.74,29.62043966]
[1745809908118,4.62917886,145.76,145.74,29.62043966]
[1745809908417,4.62917886,145.75,145.74,36.47973966]
[1745809908618,4.62917886,145.75,145.74,31.6793]
[1745809909419,4.80043966,145.78,145.76,6.8581]
[1745809909619,4.80043966,145.79,145.74,29.62043966]
[1745809909815,4.80043966,145.79,145.75,4.80043966]
[1745809910222,4.80043966,145.79,145.78,6.8574]
[1745809910821,4.63143583,145.79,145.78,6.8574]
[1745809912721,4.63143583,145.79,145.78,11.65783966]
[1745809912920,4.63143583,145.79,145.78,36.47783966]
[1745809914121,4.80043966,145.82,145.79,6.8568]
[1745809914420,4.62799867,145.81,145.79,6.8568]
[1745809914620,4.62799867,145.8,145.79,6.8568]
[1745809919121,4.80043966,145.82,145.79,6.8568]
[1745809919325,4.62195675,145.81,145.79,6.8568]
[1745809919522,4.80043966,145.82,145.79,6.8568]
[1745809919822,4.62225654,145.81,145.79,6.8568]
[1745809920019,4.80043966,145.82,145.79,6.8568]
[1745809920323,4.62224758,145.81,145.79,6.8568]
[1745809920524,4.80043966,145.82,145.79,6.8568]
[1745809920718,4.62224758,145.81,145.79,6.8568]